Cogmind - Beta 12 @@@ ROGUE MODE // 2023.06.11 @ 20:22:31 Player: Tack Result: Destroyed by G-47 Trooper with Particle Gun Performance ------------- Evolutions (0) 0 Regions Visited (2) 400 Robots Destroyed (19) 95 Value Destroyed (297) 297 Prototype IDs (0) 0 Alien Tech Used (0) 0 Bonus (0) 0 TOTAL SCORE: 792 Bonus ------- None Cogmind --------- Core Integrity 0/250 Matter 286/300 Energy 89/100 System Corruption 1% Temperature Cool (15) Movement Walking (190) Ox1 Location -10/Mines Parts ------- > --- POWER (1) -------- (None) > --- PROPULSION (2) --- Aluminum Leg > --- UTILITY (2) ------ Medium Storage Unit > --- WEAPON (2) ------- Medium Laser Light Assault Rifle > --- INVENTORY (10) --- Huge Storage Unit Decoy Drone Bay Medium Laser Small Laser Particle Gun Light Assault Rifle Mining Laser Peak State ------------ > --- POWER ------------ Light Ion Engine > --- PROPULSION ------- Light Treads Light Treads > --- UTILITY ---------- Heat Sink Medium Storage Unit > --- WEAPON ----------- Medium Laser Medium Laser > --- INVENTORY -------- Huge Storage Unit Decoy Drone Bay Medium Laser Small Laser Light Assault Rifle Light Assault Rifle Mining Laser [Rating: 9] Favorites ----------- Power Light Ion Engine Engine Light Ion Engine Propulsion Light Treads Treads Light Treads Leg Aluminum Leg Utility Medium Storage Unit Device Heat Sink Storage Medium Storage Unit Processor Targeting Computer Weapon Medium Laser Energy Gun Medium Laser Ballistic Gun Light Assault Rifle Build | -11 -10 -10 ------- Run | Jun Mat Min Slots Evolved . | . . . Power . | . . . Propulsion . | . . . Utility . | . . . Weapon . | . . . Parts Attached 20 | 6 7 7 Power 3 | 1 2 . Engine 3 | 1 2 . Core . | . . . Reactor . | . . . Propulsion 3 | 2 . 1 Treads 2 | 2 . . Leg 1 | . . 1 Wheel . | . . . Hover . | . . . Flight . | . . . Utility 7 | 1 2 4 Device 3 | . 1 2 Storage 3 | 1 1 1 Processor 1 | . . 1 Hackware . | . . . Protection . | . . . Artifact . | . . . Weapon 7 | 2 3 2 Energy Gun 4 | . 3 1 Energy Cannon . | . . . Ballistic Gun 3 | 2 . 1 Ballistic Cannon . | . . . Launcher . | . . . Special Weapon . | . . . Impact Weapon . | . . . Slashing Weapon . | . . . Piercing Weapon . | . . . Special Melee Weapon . | . . . Unidentified Prototypes . | . . . Parts Lost 7 | . 1 6 Power 2 | . 1 1 Propulsion 2 | . . 2 Utility 1 | . . 1 Weapon 2 | . . 2 Highest Loss Streak 4 | . 1 4 To Critical Strikes . | . . . Average Slot Usage (%) 90 | . 96 86 Engine 12 | . 13 12 Treads 24 | . 28 22 Leg 1 | . . 2 Device 8 | . 11 5 Storage 14 | . 14 14 Energy Gun 24 | . 23 25 Ballistic Gun 2 | . 4 1 Naked Turns . | . . . Heaviest Build 18 | 10 13 18 Greatest Support 40 | 3 40 40 Greatest Overweight (x) 4 | 3 3 4 Average Overweight (x) . | 2 . . Largest Inventory Capacity 25 | 8 25 10 Average Capacity 9 | 7 8 9 Most Carried 10 | 1 8 10 Average Carried 6 | . 5 8 Final Capacity 10 | 8 8 10 Final Carried 8 | 1 7 8 Class Distribution -------------------- 100% | Mutant Dominant Class ---------------- Mutant | -10/Materials Mutant | -10/Mines Resources | -11 -10 -10 ----------- Run | Jun Mat Min Matter Collected 387 | 205 115 67 Remotely . | . . . Salvage Created 401 | . 244 157 Parts 39 | . 26 13 Haulers Intercepted . | . . . Recyclers Shooed . | . . . Parts Field Recycled . | . . . Retrieved Matter . | . . . Parts Self-Destructed . | . . . Prevented . | . . . Kills | -11 -10 -10 ------- Run | Jun Mat Min Combat Hostiles Destroyed 15 | . 10 5 Guns 15 | . 10 5 Classes Destroyed 4 | . 4 . Builder 2 | . 1 1 Watcher 2 | . 2 . Swarmer 12 | . 9 3 Grunt 3 | . 1 2 Best Kill Streak 4 | . 4 3 Combat Bots Only 3 | . 3 3 Max Kills in Single Turn 1 | . 1 1 Gunslinging . | . . . Exploded . | . . . Melee . | . . . Uniques/NPCs Destroyed . | . . . Combat | -11 -10 -10 -------- Run | Jun Mat Min Damage Taken 982 | . 430 552 Core 262 | . 99 163 Absorbed by Shields . | . . . Core Remaining (%) 100 | 100 . . Volleys Fired 63 | . 29 34 Largest 2 | . 2 2 Hottest 100 | . 90 100 Shots Fired 116 | . 58 58 Gun 116 | . 58 58 Cannon . | . . . Launcher . | . . . Special . | . . . Kinetic 8 | . . 8 Thermal 76 | . 29 47 Explosive . | . . . Electromagnetic 32 | . 29 3 Robot Hit Streak 5 | . 5 4 Robot Miss Streak 12 | . 7 12 Penetration Max . | . . . Secondary Targets 4 | . 2 2 Max Gunslinging Chain 1 | . 1 1 Shots Hit Robots 52 | . 25 27 Core Hits 26 | . 15 11 Critical Kills . | . . . Critical Parts Destroyed . | . . . Critical Strikes 2 | . 1 1 Burn 2 | . 1 1 Melee Attacks . | . . . Impact . | . . . Slashing . | . . . Piercing . | . . . Sneak Attacks . | . . . Combat Hostiles . | . . . Follow-up Attacks . | . . . Damage Inflicted 688 | . 366 322 Guns 688 | . 366 322 Cannons . | . . . Explosions . | . . . Melee . | . . . Ramming . | . . . Kinetic 24 | . . 24 Thermal 497 | . 199 298 Explosive . | . . . Electromagnetic 167 | . 167 . Impact . | . . . Slashing . | . . . Piercing . | . . . Highest Corruption 1 | . 1 1 Average Corruption 1 | . 1 1 Corruption Purged . | . . . Corruption Blocked . | . . . Effects 6 | . 1 5 Message Errors 1 | . . 1 Matter Fused 2 | . . 2 Energy Discharges 1 | . 1 . Data Loss (minor) 1 | . . 1 Weapon Failures 1 | . . 1 Overload Shots . | . . . Overflow Damage . | . . . Projectiles . | . . . Explosions . | . . . Melee . | . . . Knockbacks . | . . . Impact . | . . . Kinetic . | . . . Secondary . | . . . Self-Inflicted Damage . | . . . Shots . | . . . Rammed . | . . . Targets Rammed . | . . . Kicked . | . . . Crushed . | . . . Highest Temperature 369 | . 12 369 Average Temperature 145 | . 10 151 Received Heat Transfer 249 | . 18 231 Effects 1 | . . 1 Energy Bleed 1 | . . 1 Siege Activations . | . . . Robots Corrupted . | . . . Combat Hostiles . | . . . Parts Fried 2 | . 2 . Impact Corruptions . | . . . Robots Melted . | . . . Combat Hostiles . | . . . Parts Melted 2 | . 1 1 Heat Transferred 1628 | . 666 962 Parts Sabotaged . | . . . Parts Stolen . | . . . Parts Stripped . | . . . Power Chain Reactions . | . . . Missiles Intercepted . | . . . Alert | -11 -10 -10 ------- Run | Jun Mat Min Peak Influence 342 | . 342 131 Initial 71 | . . 71 Average 73 | . 92 68 Maximum Alert Level 1 | . 1 . Low Security (%) 94 | 100 85 100 Level 1 5 | . 14 . Level 2 . | . . . Level 3 . | . . . Level 4 . | . . . Level 5 . | . . . High Security . | . . . Max Security . | . . . Squads Dispatched 1 | . 1 . Investigation . | . . . Extermination . | . . . Reinforcement 1 | . 1 . Assault . | . . . Garrison . | . . . Intercept . | . . . Searches Triggered . | . . . Construction Impeded . | . . . Haulers Reinforced . | . . . Active Scanning Responses . | . . . Cargo Convoy Interrupts . | . . . Stealth | -11 -10 -10 --------- Run | Jun Mat Min Distress Signals 4 | . 4 . Communications Jammed . | . . . Distress Signals . | . . . Times Spotted 24 | . 17 7 Peak Tracking Total 6 | . 6 3 Tactical Retreats 2 | . 2 . Traps | -11 -10 -10 ------- Run | Jun Mat Min Traps Triggered 1 | . 1 . Indirectly . | . . . Trap Hack Attempts . | . . . Triggered . | . . . Disarmed . | . . . Reprogrammed . | . . . Reused . | . . . Traps Extracted . | . . . Installed . | . . . Triggered . | . . . Machines | -11 -10 -10 ---------- Run | Jun Mat Min Machines Disabled 3 | . 3 . Max in Single Turn 1 | . 1 . Machines Repaired . | . . . Machines Sabotaged . | . . . Overloaded Fab Kills . | . . . Hacking | -11 -10 -10 --------- Run | Jun Mat Min Machines Accessed 2 | . 1 1 Terminals 1 | . 1 . Fabricators . | . . . Repair Stations . | . . . Recycling Units . | . . . Scanalyzers . | . . . Garrison Access . | . . . Total Hacks 2 | . 1 1 Successful 2 | . 1 1 Failed . | . . . Catastrophic . | . . . Database Lockouts . | . . . Manual . | . . . Terminals 1 | . 1 . Fabricators . | . . . Repair Stations . | . . . Recycling Units . | . . . Scanalyzers . | . . . Garrison Access . | . . . Terminal Hacks 2 | . 1 1 Record 1 | . 1 . Open Door 1 | . . 1 Fabricator Hacks . | . . . Repair Station Hacks . | . . . Recycling Unit Hacks . | . . . Scanalyzer . | . . . Garrison Access Hacks . | . . . Unauthorized Hacks . | . . . Terminals . | . . . Fabricators . | . . . Repair Stations . | . . . Recycling Units . | . . . Scanalyzers . | . . . Garrison Access . | . . . Data Cores Recovered . | . . . Used . | . . . Hacking Detections 1 | . 1 . Full Trace Events . | . . . Feedback Events . | . . . Feedback Blocked . | . . . Robot Schematics Acquired . | . . . Robots Built . | . . . Authchips . | . . . Time . | . . . Total Robot Build Rating . | . . . Part Schematics Acquired . | . . . Parts Built . | . . . Authchips . | . . . Time . | . . . Total Part Build Rating . | . . . Parts Repaired . | . . . Time . | . . . Parts Recycled . | . . . Recycled Matter . | . . . Retrieved Matter . | . . . Retrieved Components . | . . . Parts Scanalyzed . | . . . Part Schematics Acquired . | . . . Parts Damaged . | . . . Bothacking | -11 -10 -10 ------------ Run | Jun Mat Min Used RIF Installer . | . . . Robots Hacked . | . . . Non-combat . | . . . Combat . | . . . Robot Hacks Applied . | . . . Relay Couplers Released . | . . . Fabnet Peak Effective % . | . . . Robots Rewired . | . . . Allies Hacked . | . . . Hacks Repelled . | . . . Allies | -11 -10 -10 -------- Run | Jun Mat Min Total Allies . | . . . Largest Group . | . . . Highest-Rated Group . | . . . Highest-Rated Ally . | . . . Total Orders . | . . . Ally Attacks . | . . . Total Damage . | . . . Kills . | . . . Allies Corrupted . | . . . Allies Melted . | . . . Intel | -11 -10 -10 ------- Run | Jun Mat Min Robot Analysis Total . | . . . Derelict Logs Recovered 1 | . . 1 Drone Launches . | . . . Drone Recoveries . | . . . Exploration | -11 -10 -10 ------------- Run | Jun Mat Min Turns Passed 1219 | 68 461 690 Spaces Moved 558 | 38 218 302 Core 49 | 38 9 2 Treads 473 | . 209 264 Legs 36 | . . 36 Wheels . | . . . Hover . | . . . Flight . | . . . Fastest Speed 50 | 50 160 160 Average Speed 162 | 156 161 164 Slowest Speed 250 | 200 200 250 Overloaded Moves . | . . . Propulsion Burnouts . | . . . Robots Hopped . | . . . Cave-ins Triggered . | . . . Exploration Rate (%) 29 | 5 37 46 Regions Visited 2 Branch Regions 1 Pre-discovered Areas . | . . . Known Exits Taken . | . . . Unknown Exits Taken 2 | 1 1 . Scrap Searched 1 | . . 1 Spaces Dug . | . . . Terrain Destroyed . | . . . Melee . | . . . Projectile . | . . . AOE . | . . . Terrain Rammed . | . . . Walls Destroyed . | . . . Machines Disabled . | . . . Actions | -11 -10 -10 --------- Run | Jun Mat Min Total 757 | 44 270 443 Wait 96 | . 7 89 Move 556 | 37 217 302 Hop . | . . . Pick Up 10 | 1 5 4 Fast Attach 12 | 6 3 3 Attach 8 | . 4 4 Detach 9 | . 5 4 Swap . | . . . Drop 3 | . . 3 Fire 63 | . 29 34 Melee . | . . . Ram . | . . . Kick . | . . . Crush . | . . . Escape Stasis . | . . . Rewire . | . . . Trap . | . . . Miscellaneous . | . . . Route ------- -11/Junkyard -10/Materials -10/Mines (discovered 1 exit: [*Mat]) History --------- Turn | Location | Event 24 | -11/Junkyard | Discovered new exit (range 16) 69 | -11/Junkyard | Entered Materials 315 | -10/Materials | Build established: Mutant 405 | -10/Materials | Discovered new exit (range 6) 530 | -10/Materials | Entered Mines 558 | -10/Mines | Found the Drone Emporium 569 | -10/Mines | Found Prototype Device 646 | -10/Mines | Core integrity fell below 50% 681 | -10/Mines | Discovered new exit (range 8) 1115 | -10/Mines | Core integrity fell below 20% 1143 | -10/Mines | Lost 4 parts (2n1u1w) 1220 | -10/Mines | Destroyed by G-47 Trooper with Particle Gun Last Messages --------------- 01110_ G-47 Trooper suffers critical hit (Burn). 01111_ K-01 Serf collects debris. 01112_ Med. Laser destroyed. 01115_ K-01 Serf collects debris. 01122_ Acquired Aluminum Leg. 01123_ K-01 Serf collects debris. 01124_ G-47 Trooper overheating. 01127_ K-01 Serf collects debris. 01127_ G-47 Trooper overheating. 01128_ Acquired 10 matter. 01128_ G-47 Trooper overheating. 01129_ K-01 Serf collects debris. 01143_ Lgt. Ion Engine destroyed. 01143_ G-47 Trooper destroyed. 01148_ K-01 Serf collects debris. 01155_ Acquired Particle Gun. 01156_ Acquired 7 matter. 01159_ K-01 Serf collects debris. 01211_ System corrupted: Matter fused (-8). 01217_ U-05 Engineer destroyed. Map ----- +----------------------------------------------------+ | ?????????????????????#=%% % #??###??????????????? | | ?????????????????????####### #????####???????????? | | ???????????????????????????# #???## ##??????????? | | ???????????????????????????# ##### ##?????????? | | ???????????????????????????# ###???????? | | ???????????????????????????###### ###?????? | | ????????????????????????????????## ##????? | | ?????????????????????????????????## #????? | | ??????????????????????????????????## ### #????? | | ???????????????????????????????????# #??? ##????? | | ???????????????????????????????????# #????##?????? | | ???????????????????????????????????# #???????????? | | ???????????????????????????????????# #???????????? | | ???????????????????????????????????# #???????????? | | ??????? ##?????????????############ #???????????? | | ????? ?????????????# #???????????? | | ????? ?????????????# ############???????????? | | ?????? ?????????????# #??????????????????????? | | ?????? ?????????????# #??????????????????????? | | ?????? #?????????????# #??????????????????????? | | ?????? ##????????????# #??????????????????????? | | ?????? ####?????????# #??????????????????????? | | ??????? ##????????#!#??????????????????????? | | ??????? ????###??#g#??????????????????????? | | ??????## ???## ##?#g#??????????????????????? | | ??????? #?### ###@###????????????????????? | | ???????# ## ### k ! #????????????????????? | | ???????# ## ## ##### #????????????????????? | | ?????### ## ## ##???# #????????????????????? | | ????## ## ### ##????# ????????????????????? | | ????# % ## ##????? ???????????????????? | | ????# # ####??? ??????????????????? | | ????## # ##?? #?????????????????? | | ?????# #?? #?????????????????? | | ????## #?? #?????????????????? | | ??### ##??# ? ?????????????????? | | ?## ##????###? ?????????????????? | | ?# % #?????????? ????????????????? | | ## ### ##????????? ????????????????? | | # ###?# ##????????? ???????????????? | | # ##??## """ #?????????????????????????? | | # ##??# """ #?????????????????????????? | | # #### """ #?????????????????????????? | | # ## ##?????????????????????????? | | # ##??????????????????????????? | | # #???????????????????????????? | | # #???????????????????????????? | | # #???????????????????????????? | | ##???????????????????????????? | | #????????????????????????????? | +----------------------------------------------------+ Best States ------------- Heat Dissipation 35 Energy Generation 10 Energy Capacity 125 Matter Stores 300 Matter Capacity 300 Sight Range 16 Terrain Scan Density 10 Evasion (%) 50 Targeting Accuracy 5 Recoil Reduction 2 Item Schematics ----------------- None Robot Schematics ------------------ None Fabricated ------------ Nothing Alien Tech Used ----------------- None Achievements -------------- None Challenges ------------ None Game ------ Seed CoreExplosiveThermoblaster Manual? 0 Play Time 00:20:32 Cumulative 21.4 hours Start 2023.06.11 @ 19:45:08 End 2023.06.11 @ 20:22:31 Sessions 1 Manual Loads 0 Difficulty Rogue Special Mode None Game No. 40 Rogue 40 Adventurer 0 Explorer 0 Win Type - Total 0 Types 0/0/0/0/0/0/0/0/0 Lore% 4 Gallery% 24 Achievement% 3 Wizard Run 0 Options --------- ASCII 0 Keyboard 1 Movement Numpad Keybinds 0 Fullscreen 2 Font 24/Terminus Map View 76x50 Tactical HUD 1 Map Filters NONE Filters NONE Steam 1 RUN: fcf4ee06-aece-4e64-906b-510ae9c168bd